{"text_format":"1","workbook":"xlsx","n_sheets":1,"sheets":["CCGT Developmental"],"not_rendered":{"charts":0,"images":0,"macros":1,"external_links":0,"defined_names":0,"comments":0,"pivot_tables":0},"unopened":[],"bounds":{"document_bytes":16777216,"sheet_cells":100000,"rows_first":2000,"rows_last":500,"rows_between":2000,"halvings":0,"cell_chars":16384,"cell_head_chars":4096},"cells_cut":0,"cells_raw":0,"read":"whole","date_system":"1900"}

{"sheet":"CCGT Developmental","index":0,"n_rows":68,"n_cols":7,"rows_kept":68,"cut":false,"hidden":false,"merged":[[1,1,1,3],[65,2,65,3]]}
[]
[null,"2014 Amite South RFP - SELF-ASSESSMENT FORM FOR CCGT DEVELOPMENTAL RESOURCES"]
[null,"Assessment Criteria","Bidder Response","Bidder Comments","resp answered","comment answered"]
[null,"Bidder ID",null,null,{"$f":"IF(C4=\"\",0,1)","v":0},{"$f":"IF(D4=\"\",0,1)","v":0}]
[null,"Resource ID",null,null,{"$f":"IF(C5=\"\",0,1)","v":0},{"$f":"IF(D5=\"\",0,1)","v":0}]
[null,"Proposal ID",null,null,0,0]
[null,null,null,null,0,0]
[null,"Resource Overview",null,null,0,0]
[null,"Expected Commercial Operation Date",null,null,0,0]
[null,"Guaranteed Commercial Operation Date",null,null,0,0]
[null,"Other Sales Commitments from Resource?",null,null,0,0]
[null,"Physical Configuration",null,null,0,0]
[null,"Technology and Equipment (including Turbine Manufacturer)",null,null,0,0]
[null,"Other Major Equipment Manufacturer (e.g. Steam Turbine at facility)",null,null,0,0]
[null,"Heat Rate at Full Load",null,null,0,0]
[null,"Typical Unit Operation Role ",null,null,0,0]
[null,"Expected Dependable Capacity Offered - ICAP (MW) ",null,null,0,0]
[null,"Expected Recognized Capacity Offered - UCAP (MW)",null,null,0,0]
[null,"Physical Delivery Point",null,null,0,0]
[null,"PPA, Toll or Acquisition",null,null,0,0]
[null,"If PPA or Toll, Delivery Term",null,null,0,0]
[null,null,null,null,0,0]
[null,"Technical Feasibility",null,null,0,0]
[null,"Is the proposal based on proven technology (operating history and financeable)?",null,null,0,0]
[null,null,null,null,0,0]
[null,"Bidder Experience",null,null,0,0]
[null,"Has Bidder completed at least one utility scale project with the proposed technology?",null,null,0,0]
[null,"Do the project team members, combined, have a direct responsibility for at least three completed utility-scale projects, regardless of technology?",null,null,0,0]
[null,null,null,null,0,0]
[null,"Development Status",null,null,0,0]
[null,"Has a detailed engineering study been performed?",null,null,0,0]
[null,"Is the project cost estimate based on front-end engineering that supports a class 3 estimate (-20% to +30%)?",null,null,0,0]
[null,"Has a detailed construction schedule (Level 2) been performed?",null,null,0,0]
[null,"Is the proposal based on an EPC bid or an internal analysis?",null,null,0,0]
[null,null,null,null,0,0]
[null,"Commercial  ",null,null,0,0]
[null,"Is the proposal based on an Eligible Resource?",null,null,0,0]
[null,"Has Bidder's proposal taken exceptions to the term sheet(s)?",null,null,0,0]
[null,"For a PPA or Toll, is the Financial Delivery Point into Amite South or DSG?",null,null,0,0]
[null,null,null,null,0,0]
[null,"Site Assessment",null,null,0,0]
[null,"Does Bidder have control over the project site or a binding and enforceable contract to obtain control of the project site?",null,null,0,0]
[null,"Has an interconnection request been submitted?",null,null,0,0]
[null,"Has an interconnection agreement been executed?",null,null,0,0]
[null,"Does Bidder have control of land to and at the point of interconnection? ",null,null,0,0]
[null,"Does Bidder have access or a viable plan for access to an adequate and sustainable supply of water for the resource?",null,null,0,0]
[null,null,null,null,0,0]
[null,"Fuel Supply and Transportation",null,null,0,0]
[null,"Does Bidder have a  viable fuel transportation plan",null,null,0,0]
[null,"Will the facility be connected to or does it have access to, multiple pipelines, with reasonable interconnection assumptions (distance from project, pressure, etc.)",null,null,0,0]
[null,"Will the facility have access to gas storage?",null,null,0,0]
[null,null,null,null,0,0]
[null,"Permits",null,null,0,0]
[null,"Has Bidder provided both a plan to obtain all project permits and the status of obtaining all project permits?",null,null,0,0]
[null,"Has Bidder completed or does Bidder have plans to complete a Phase I environmental site assessment ?",null,null,0,0]
[null,"Has Bidder disclosed any reasonably anticipated material permitting obstacles related to the permitting activities for the project?",null,null,0,0]
[null,"Has Bidder provided a viable permitting timeline/environmental compliance plan for the project?",null,null,0,0]
[null,null,null,null,0,0]
[null,"Project Financing ",null,null,0,0]
[null,"Has Bidder provided a plan for the financing of the project?",null,null,0,0]
[null,"Has Bidder described the ownership structure of the resource?",null,null,0,0]
[null,"Has Bidder described how it intends to meet the applicable credit/collateral requirements specified in the RFP?",null,null,0,0]
[null,"Has Bidder provided evidence that it has successfully funded or financed at least one similar project?",null,null,0,0]
[null,"Does Bidder's Proposal trigger a VIE structure or capital lease?",null,null,{"$f":"IF(C64=\"\",0,1)","v":0},{"$f":"IF(D64=\"\",0,1)","v":0}]
[]
[null,null,{"$f":"IF(E66+F66<86, \"Form not completely filled out\", IF(E66+F66>86, \"Too many entries, review form\",\"\"))","v":"Form not completely filled out"},null,{"$f":"SUM(E4:E64)","v":0},{"$f":"SUM(F4:F64)","v":0}]
[null,null,null,null,43,43]
[null,null,null,null,{"$f":"IF(E67=E66,1,0)","v":0},{"$f":"IF(F67=F66,1,0)","v":0},{"$f":"SUM(E68:F68)","v":0}]